Cogmind - Beta 16.1 @@@ ROGUE MODE // 2026.04.18 @ 10:04:26 Player: SunShine214 Result: Destroyed by D-53 Grenadier with Mini Grenade Launcher Performance ------------- Evolutions (0) 0 Regions Visited (3) 600 Robots Destroyed (28) 140 Value Destroyed (901) 901 Prototype IDs (13) 260 Alien Tech Used (0) 0 Bonus (0) 0 TOTAL SCORE: 1901 Bonus ------- None Cogmind --------- Core Integrity 0/250 Matter 234/300 Energy 94/100 System Corruption 1% Temperature Cool (49) Movement Core (400) Ox7 Location -9/Recycling Parts ------- > --- POWER (1) -------- (None) > --- PROPULSION (2) --- (None) > --- UTILITY (2) ------ Large Storage Unit > --- WEAPON (2) ------- Grenade Launcher > --- INVENTORY (15) --- Flightbrick Large Storage Unit Light Armor Plating Makeshift Hacking Suite Grenade Launcher 1B-0RG's Assimilator Plasma Cutter Peak State ------------ > --- POWER ------------ Improved Ion Engine > --- PROPULSION ------- Light Treads Light Treads > --- UTILITY ---------- Large Storage Unit Medium Armor Plating > --- WEAPON ----------- Spread Laser Grenade Launcher > --- INVENTORY -------- Flightbrick Large Storage Unit Light Armor Plating Makeshift Hacking Suite Grenade Launcher Grenade Launcher 1B-0RG's Assimilator Plasma Cutter [Rating: 21] Favorites ----------- Power Improved Ion Engine Engine Improved Ion Engine Propulsion Light Treads Treads Light Treads Utility Large Storage Unit Storage Large Storage Unit Protection Light Armor Plating Weapon Grenade Launcher Energy Gun EM Pulse Gun Launcher Grenade Launcher Impact Weapon Hammer Build | -11 -10 -10 -9 ------- Run | Yrd Mat Sub Rec Slots Evolved . | . . . . Power . | . . . . Propulsion . | . . . . Utility . | . . . . Weapon . | . . . . Parts Attached 19 | 6 2 3 8 Power 2 | 1 . 1 . Engine 2 | 1 . 1 . Core . | . . . . Reactor . | . . . . Propulsion 4 | 2 . . 2 Treads 4 | 2 . . 2 Leg . | . . . . Wheel . | . . . . Hover . | . . . . Flight . | . . . . Utility 4 | 1 1 . 2 Device . | . . . . Storage 2 | 1 1 . . Processor . | . . . . Hackware . | . . . . Protection 2 | . . . 2 Artifact . | . . . . Weapon 9 | 2 1 2 4 Energy Gun 3 | 2 . . 1 Energy Cannon . | . . . . Ballistic Gun . | . . . . Ballistic Cannon . | . . . . Launcher 5 | . 1 1 3 Special Weapon . | . . . . Impact Weapon 1 | . . 1 . Slashing Weapon . | . . . . Piercing Weapon . | . . . . Special Melee Weapon . | . . . . Unidentified Prototypes . | . . . . Parts Lost 12 | . 1 . 11 Power 1 | . . . 1 Propulsion 4 | . . . 4 Utility 1 | . . . 1 Weapon 6 | . 1 . 5 Highest Loss Streak 6 | . 1 . 6 To Critical Strikes . | . . . . Average Backups 9 | . 7 11 7 Power . | . . . . Propulsion . | . . . 1 Utility 2 | . . 2 2 Weapon 6 | . 7 8 3 Tool/Special . | . . . . Unused Backups 10 | . . 3 7 Power . | . . . . Propulsion 1 | . . . 1 Utility 2 | . . . 2 Weapon 5 | . . 3 2 Tool/Special 2 | . . . 2 Average Slot Usage (%) 80 | . 84 85 70 Engine 13 | . 14 14 13 Treads 21 | . 28 28 8 Storage 14 | . 14 14 14 Protection 1 | . . . 5 Energy Gun 5 | . 17 1 5 Launcher 13 | . 10 14 13 Impact Weapon 9 | . . 12 7 Peak Build Rating 21 | 6 7 18 21 Average Rating 10 | 4 6 8 17 On Entrance 7 | . 6 6 18 Avg Prop Armor Cover (%) . | . . . . Naked Turns . | . . . . Heaviest Build 40 | 12 33 32 40 Greatest Support 40 | 40 40 40 40 Greatest Overweight (x) 10 | . . . 10 Average Overweight (x) . | . . . 3 Largest Inventory Capacity 15 | 8 15 15 15 Average Capacity 13 | 6 9 15 15 Most Carried 15 | . 11 15 15 Average Carried 11 | . 8 12 14 Final Capacity 15 | 8 15 15 15 Final Carried 15 | . 11 15 14 Class Distribution -------------------- 98% | Mutant Dominant Class ---------------- Mutant | -10/Materials Mutant | -10/Subcaves Mutant | -9/Recycling Resources | -11 -10 -10 -9 ----------- Run | Yrd Mat Sub Rec Matter Collected 693 | 203 . 249 241 Remotely . | . . . . Salvage Created 707 | . 71 301 335 Parts 48 | . 13 22 13 Haulers Intercepted . | . . . . Recyclers Shooed 2 | . . . 2 Parts Field Recycled . | . . . . Retrieved Matter . | . . . . Parts Self-Destructed 11 | . . 11 . Prevented . | . . . . Parts Restored . | . . . . Kills | -11 -10 -10 -9 ------- Run | Yrd Mat Sub Rec Combat Hostiles Destroyed 22 | . 3 12 7 Melee 1 | . . 1 . Guns 7 | . 1 . 6 AOE 14 | . 2 11 1 Classes Destroyed 8 | . 3 2 3 Builder 2 | . 1 . 1 Recycler 2 | . . . 2 Watcher 2 | . 2 . . Swarmer 3 | . 3 . . Duelist 1 | . . . 1 Sentry 6 | . . 1 5 Programmer 1 | . . . 1 Subdweller 11 | . . 11 . Best Kill Streak 5 | . 4 4 5 Combat Bots Only 4 | . 3 4 3 Max Kills in Single Turn 2 | . 2 2 2 Gunslinging . | . . . . Exploded 2 | . 2 2 1 Melee 1 | . . 1 . Uniques/NPCs Destroyed . | . . . . Combat | -11 -10 -10 -9 -------- Run | Yrd Mat Sub Rec Hostile Shots Fired 127 | . 15 26 86 Missed 43 | . 7 12 24 Hits 84 | . 8 14 62 Melee 5 | . . . 5 Projectile 79 | . 8 14 57 AOE 6 | . . . 6 Critical Strikes 9 | . . . 9 Damage Taken 1629 | . 103 263 1263 Core 263 | . 10 7 246 Absorbed by Shields . | . . . . Core Remaining (%) 100 | 100 . . . Volleys Fired 69 | . 14 27 28 Largest 2 | . 2 2 2 Hottest 95 | . 70 70 95 Shots Fired 85 | . 17 33 35 Gun 41 | . 14 6 21 Cannon . | . . . . Launcher 44 | . 3 27 14 Special . | . . . . Kinetic . | . . . . Thermal 21 | . . . 21 Explosive 44 | . 3 27 14 Electromagnetic 20 | . 14 6 . Robot Hit Streak 15 | . 1 15 12 Robot Miss Streak 7 | . 3 1 7 Penetration Max . | . . . . Secondary Targets . | . . . . Shots Hit Robots 55 | . 3 19 33 Core Hits 68 | . 5 22 41 Critical Kills . | . . . . Critical Parts Destroyed . | . . . . Critical Strikes . | . . . . Melee Attacks 41 | . . 28 13 Impact 41 | . . 28 13 Slashing . | . . . . Piercing . | . . . . Sneak Attacks 1 | . . . 1 Combat Hostiles . | . . . . Follow-up Attacks . | . . . . Damage Inflicted 2369 | . 214 1241 914 Guns 431 | . 68 43 320 Cannons . | . . . . Explosions 1766 | . 134 1156 476 Melee 144 | . . 42 102 Ramming 28 | . 12 . 16 Kinetic . | . . . . Thermal 320 | . . . 320 Explosive 1766 | . 134 1156 476 Electromagnetic 111 | . 68 43 . Impact 144 | . . 42 102 Slashing . | . . . . Piercing . | . . . . Highest Corruption 1 | . . . 1 Average Corruption 1 | . . . 1 Corruption Purged . | . . . . Corruption Blocked . | . . . . Effects 1 | . . . 1 Message Errors 1 | . . . 1 Overload Shots . | . . . . Overflow Damage 17 | . 2 . 15 Projectiles . | . . . . Explosions 17 | . 2 . 15 Melee . | . . . . Knockbacks . | . . . . Impact . | . . . . Kinetic . | . . . . Secondary . | . . . . Self-Inflicted Damage 215 | . 27 22 166 Shots 9 | . 1 1 7 Rammed 6 | . 1 . 5 Targets Rammed 7 | . 2 . 5 Kicked . | . . . . Crushed 1 | . 1 . . Highest Temperature 378 | . 9 . 378 Average Temperature 114 | . 6 . 125 Received Heat Transfer 369 | . 18 54 297 Effects 1 | . . . 1 Shutdowns 1 | . . . 1 Siege Activations . | . . . . Martial Activations . | . . . . Shielding Activations . | . . . . Robots Disrupted . | . . . . Combat Hostiles . | . . . . Robots Corrupted . | . . . . Combat Hostiles . | . . . . Parts Fried . | . . . . Impact Corruptions . | . . . . Robots Melted . | . . . . Combat Hostiles . | . . . . Parts Melted . | . . . . Heat Transferred 405 | . . . 405 Parts Sabotaged . | . . . . Parts Stolen . | . . . . Parts Stripped . | . . . . Power Chain Reactions . | . . . . Alert | -11 -10 -10 -9 ------- Run | Yrd Mat Sub Rec Maximum Alert Level . | . . . . Low Security (%) 100 | 100 100 . 100 Level 1 . | . . . . Level 2 . | . . . . Level 3 . | . . . . Level 4 . | . . . . Level 5 . | . . . . High Security . | . . . . Max Security . | . . . . Peak Influence 88 | . 88 . 71 Initial 12 | . . . 12 Average 8 | . 20 . 5 Influence Increases 422 | . 118 50 254 Destroy 0b10 Robot/C 220 | . 60 20 140 Destroy 0b10 Robot/NC 30 | . 15 . 15 Destroy Leader 14 | . 14 . . Successful Hack 17 | . 5 . 12 Destroy Structure 96 | . 24 . 72 Lose Combat Pursuer 45 | . . 30 15 Influence Decreases 366 | . 118 23 225 Entered New Map 15 | . . . 15 Time Decay 273 | . 118 23 132 Lost Part 78 | . . . 78 Squads Dispatched . | . . . . Investigation . | . . . . Extermination . | . . . . Reinforcement . | . . . . Assault . | . . . . Garrison . | . . . . Intercept . | . . . . Searches Triggered . | . . . . Construction Impeded . | . . . . Haulers Reinforced . | . . . . Active Scanning Responses . | . . . . Cargo Convoy Interrupts . | . . . . Stealth | -11 -10 -10 -9 --------- Run | Yrd Mat Sub Rec Distress Signals 1 | . 1 . . Communications Jammed . | . . . . Distress Signals . | . . . . Times Spotted 32 | . 7 17 8 Peak Tracking Total 6 | . 5 6 4 Tactical Retreats 2 | . . 1 1 Traps | -11 -10 -10 -9 ------- Run | Yrd Mat Sub Rec Traps Triggered . | . . . . Indirectly . | . . . . Trap Hack Attempts . | . . . . Triggered . | . . . . Disarmed . | . . . . Reprogrammed . | . . . . Reused . | . . . . Traps Extracted . | . . . . Installed . | . . . . Triggered . | . . . . Machines | -11 -10 -10 -9 ---------- Run | Yrd Mat Sub Rec Machines Disabled 1 | . . 1 . Max in Single Turn 1 | . . 1 . Machines Repaired . | . . . . Machines Dismantled . | . . . . Machines Sabotaged . | . . . . Overloaded Fab Kills . | . . . . Hacking | -11 -10 -10 -9 --------- Run | Yrd Mat Sub Rec Machines Accessed 8 | . 3 1 4 Terminals 6 | . 3 . 3 Fabricators . | . . . . Repair Stations . | . . . . Recycling Units 1 | . . . 1 Scanalyzers . | . . . . Garrison Access . | . . . . Total Hacks 12 | . 3 1 8 Successful 9 | . 3 1 5 Failed 3 | . . . 3 Catastrophic . | . . . . Database Lockouts . | . . . . Manual . | . . . . Terminals 8 | . 3 . 5 Fabricators . | . . . . Repair Stations . | . . . . Recycling Units 3 | . . . 3 Scanalyzers . | . . . . Garrison Access . | . . . . Terminal Hacks 8 | . 3 1 4 Part Schematic 3 | . . . 3 Registered Components 1 | . 1 . . Zone Layout 3 | . 2 . 1 Proto ID Catalog 1 | . . 1 . Fabricator Hacks . | . . . . Repair Station Hacks . | . . . . Recycling Unit Hacks 1 | . . . 1 Retrieve Components 1 | . . . 1 Scanalyzer . | . . . . Garrison Access Hacks . | . . . . Unauthorized Hacks . | . . . . Terminals . | . . . . Fabricators . | . . . . Repair Stations . | . . . . Recycling Units . | . . . . Scanalyzers . | . . . . Garrison Access . | . . . . Data Cores Recovered . | . . . . Used . | . . . . Hacking Detections . | . . . . Full Trace Events . | . . . . Feedback Events . | . . . . Feedback Blocked . | . . . . Robot Schematics Acquired . | . . . . Robots Built . | . . . . Authchips . | . . . . Time . | . . . . Total Robot Build Rating . | . . . . Part Schematics Acquired 3 | . . . 3 Parts Built . | . . . . Authchips . | . . . . Time . | . . . . Total Part Build Rating . | . . . . Part Studies Acquired . | . . . . Parts Repaired . | . . . . Time . | . . . . Parts Recycled . | . . . . Recycled Matter . | . . . . Retrieved Matter . | . . . . Retrieved Components 4 | . . . 4 Parts Scanalyzed . | . . . . Part Schematics Acquired . | . . . . Parts Damaged . | . . . . Bothacking | -11 -10 -10 -9 ------------ Run | Yrd Mat Sub Rec Used RIF Installer . | . . . . Robots Hacked . | . . . . Non-combat . | . . . . Combat . | . . . . Robot Hacks Applied . | . . . . Relay Couplers Released . | . . . . Fabnet Peak Effective % . | . . . . Robots Rewired . | . . . . Allies Hacked . | . . . . Hacks Repelled . | . . . . Allies | -11 -10 -10 -9 -------- Run | Yrd Mat Sub Rec Total Allies . | . . . . Largest Group . | . . . . Highest-Rated Group . | . . . . Highest-Rated Ally . | . . . . Total Orders . | . . . . Ally Attacks . | . . . . Total Damage . | . . . . Kills . | . . . . Allies Corrupted . | . . . . Allies Melted . | . . . . Intel | -11 -10 -10 -9 ------- Run | Yrd Mat Sub Rec Active Infowar (turns) . | . . . . Robot Analysis Total . | . . . . Derelict Logs Recovered 2 | . . 2 . Drone Launches . | . . . . Drone Recoveries . | . . . . Exploration | -11 -10 -10 -9 ------------- Run | Yrd Mat Sub Rec Turns Passed 3610 | 138 492 1847 1133 Spaces Moved 1731 | 82 278 1059 312 Core 105 | 1 . . 104 Treads 1626 | 81 278 1059 208 Legs . | . . . . Wheels . | . . . . Hover . | . . . . Flight . | . . . . Fastest Speed 50 | 50 160 160 160 Average Speed 189 | 158 160 160 323 Slowest Speed 550 | 160 160 160 550 Overloaded Moves . | . . . . Propulsion Burnouts . | . . . . Robots Hopped . | . . . . Potential Cave-ins . | . . . . Cave-ins Triggered . | . . . . Exploration Rate (%) 45 | 4 46 56 75 Regions Visited 3 Branch Regions 2 Pre-discovered Areas 1 | . . 1 . Known Exits Taken . | . . . . Unknown Exits Taken 3 | 1 1 1 . Scrap Searched . | . . . . Spaces Dug 25 | . . 23 2 Terrain Destroyed 260 | . 21 147 92 Melee 3 | . . 1 2 Projectile . | . . . . AOE 257 | . 21 146 90 Terrain Rammed . | . . . . Walls Destroyed . | . . . . Machines Disabled . | . . . . Actions | -11 -10 -10 -9 --------- Run | Yrd Mat Sub Rec Total 1898 | 87 307 1133 371 Wait 5 | . 1 4 . Move 1728 | 81 277 1058 312 Hop . | . . . . Pick Up 18 | . 10 5 3 Fast Attach 11 | 6 1 . 4 Attach 5 | . . 1 4 Detach 1 | . 1 . . Swap 4 | . 1 2 1 Drop 9 | . . 8 1 Fire 69 | . 14 27 28 Melee 41 | . . 28 13 Ram . | . . . . Kick . | . . . . Crush 7 | . 2 . 5 Escape Stasis . | . . . . Rewire . | . . . . Trap . | . . . . Miscellaneous . | . . . . Route ------- -11/Scrapyard -10/Materials (discovered 3 exits: [*Mat x2] / *Sub) -10/Subcaves (discovered 3 exits: [*Mat] / *Rec / [*Scr]) -9/Recycling (discovered 1 exit: [*Fac]) History --------- Turn | Location | Event 10 | -11/Scrapyard | Discovered new exit (range 16) 139 | -11/Scrapyard | Entered Materials 288 | -10/Materials | Discovered new exit (range 4) 306 | -10/Materials | Build established: Mutant 424 | -10/Materials | Discovered new exit (range 11) 459 | -10/Materials | Discovered new exit (range 11) 631 | -10/Materials | Entered Subcaves 632 | -10/Subcaves | Approached by a straggling Scientist 652 | -10/Subcaves | Learned location of Zion (-6) 1134 | -10/Subcaves | Scientist uncovered a shortcut to Scraptown 1264 | -10/Subcaves | Discovered new exit (range 15) 1449 | -10/Subcaves | Learned location of 1 exit from Materials 1751 | -10/Subcaves | A swath of the cavern ceiling suddenly collapsed 2074 | -10/Subcaves | Ambushed by Subdwellers from Twisted Machinery 2261 | -10/Subcaves | Visited 4L-MR0's lab 2273 | -10/Subcaves | Found Prototype Special Melee Weapon 2295 | -10/Subcaves | Found Flightbrick 2433 | -10/Subcaves | Ambushed by Subdweller buried in earth 2435 | -10/Subcaves | Ambushed by Subdweller buried in earth 2437 | -10/Subcaves | Ambushed by Subdweller buried in earth 2439 | -10/Subcaves | Ambushed by Subdweller buried in earth 2474 | -10/Subcaves | Discovered new exit (range 3) 2478 | -10/Subcaves | Entered Recycling 3433 | -9/Recycling | Discovered new exit (range 16) 3448 | -9/Recycling | Core integrity fell below 50% 3592 | -9/Recycling | Core integrity fell below 20% 3611 | -9/Recycling | Destroyed by D-53 Grenadier with Mini Grenade Launcher Last Messages --------------- 03587_ Lgt. Treads severed. 03589_ Lgt. Treads destroyed. 03589_ Acquired Lgt. Treads. 03590_ U-05 Engineer builds a Wall. 03591_ L-31 Rogue destroyed. 03593_ Y-45 Defender destroyed. 03596_ Acquired 18 matter. 03596_ R-06 Scavenger collects Target Analyzer. 03597_ U-05 Engineer builds a Wall. 03600_ R-06 Scavenger collects Terrain Scanner. 03600_ R-06 Scavenger collects Lgt. Treads. 03601_ R-06 Scavenger destroyed. 03602_ R-06 Scavenger collects Target Analyzer. 03606_ The unstable cave ceiling collapses. 03606_ R-06 Scavenger collects Com. Wheel. 03607_ The unstable cave ceiling collapses. 03607_ U-05 Engineer builds a Wall. 03607_ Spread Laser destroyed. 03607_ Lgt. Treads destroyed. 03611_ U-05 Engineer builds a Wall. Map ----- +----------------------------------------------------+ | ?????????????????????????????????????????????????? | | ?????????????????????????????????????????????????? | | ?????????????????????????????????????????????????? | | ?????????????????????????????????????????????????? | | ?????????????????????????????????????????????????? | | ?????????????????????????????????????????????????? | | ?????????????????????????????????????????????????? | | ?????????????????????????????????????????????????? | | ?????????????????????????????????????????????????? | | ???????????????????##????????????????????????????? | | ????????######????""#????????????????????????????? | | ######### ## ####"T"###"Y"##?????????????????????? | | ????????????????????? | | < ????????????????????? | | ????????????????????? | | ########## ## !!###########??????????????????????? | | ?????????# ##! !#???##???????????????????????????? | | ?????????# ##########r########???????????????????? | | ?????????# #?# #???????????????????? | | ??????#### #?# #???????????????????? | | ??????# #?# #???????????????????? | | ??????# #?# #???????????????????? | | ??????# #?# ##??????????????????? | | ??????# #?# #??????????????????? | | #######+##+### #??????????????????? | | # %! # @ #??????????????????? | | # ! # #???????##?????????? | | # % ] # #???? #?????????? | | # / ########## #??[ #?????????? | | # # ## ! ! #?????????? | | #! ! + r % d % ] #?????????? | | # % | # # #?????????? | | # ### ##### ##? #?????????? | | # #?# #???# ??? ? ] #?????????? | | # #?# #???# ###??? ?? #?????????? | | # #?# #???# # #?????? ????????????? | | # #?#+#???# #???????????????????? | | ##############??????? ##???????????????????? | | ????????????????????? /# ##????????????????????? | | ????????????????????? !# #?????????????????????? | | #??????????????????????+ #?????????????????????? | | #??????????????????????# #?????????????????????? | | #??????????????????????# #?????????????????????? | | #??????????????????????+ +?????????????????????? | | #??????????????????????# #?????????????????????? | | #??????????????????????? ??????????????????????? | | #????????????????????????????????????????????????? | | #????????????????????????????????????????????????? | | #????????????????????????????????????????????????? | | #????????????????????????????????????????????????? | +----------------------------------------------------+ Best States ------------- Heat Dissipation 25 Energy Generation 12 Energy Capacity 265 Matter Stores 300 Matter Capacity 300 Sight Range 16 Terrain Scan Density 10 Armor Coverage 225 Evasion (%) 40 Recoil Reduction 2 Item Schematics ----------------- Med. Reactive Plating | -9/Recycling | Hacked Hvy. Mace | -9/Recycling | Hacked Imp. Aluminum Leg | -9/Recycling | Hacked Robot Schematics ------------------ None Fabricated ------------ Nothing Repaired ---------- Nothing Studied --------- None Alien Tech Used ----------------- None Achievements -------------- Nice Directions, Buddy Challenges ------------ None Game ------ Seed GaussAlloyImpeller Manual? 0 Play Time 00:15:32 Cumulative 141.4 hours Start 2026.04.18 @ 09:48:15 End 2026.04.18 @ 10:04:26 Sessions 1 Manual Loads 0 Difficulty Rogue Special Mode None Game No. 219 Rogue 219 Adventurer 0 Explorer 0 Win Type - Total 1 Types 1/0/0/0/0/0/0/0/0/0 Lore% 51 Gallery% 54 Achievement% 42 Wizard Run 0 Options --------- Layout 1 ASCII 0 Keyboard 1 Movement Arrows Keybinds 0 Fullscreen 1 Font 24/Smallcaps Map View 50x35 Zoom Use 0% Tactical HUD 1 Map Filters NONE Filters NONE Steam 1 RUN: aa0898a7-722d-44ae-8228-63099011464b